Cogmind - Beta 16.1 @@@ ROGUE MODE // 2026.02.21 @ 17:56:33 Player: Rocket Result: Destroyed by XM-RMV(R) with Subdweller Beam Cannon Performance ------------- Evolutions (0) 0 Regions Visited (2) 400 Robots Destroyed (22) 110 Value Destroyed (581) 581 Prototype IDs (0) 0 Alien Tech Used (0) 0 Bonus (0) 0 TOTAL SCORE: 1091 Bonus ------- None Cogmind --------- Core Integrity 0/250 Matter 90/300 Energy 250/250 System Corruption 0% Temperature Cool (32) Movement Core (1600) Ox31 Location -10/Subcaves Parts ------- > --- POWER (1) -------- Ion Engine > --- PROPULSION (2) --- (None) > --- UTILITY (2) ------ Huge Storage Unit Makeshift Light Armor Plating > --- WEAPON (2) ------- Medium Laser Barrage Gun > --- INVENTORY (25) --- Wheel Wheel Small Matter Pod (50) Medium Matter Pod (100) Medium Matter Pod (100) Seismic Detector Propulsion Shielding Tractor Beam Mining Laser Peak State ------------ > --- POWER ------------ Ion Engine > --- PROPULSION ------- Light Treads Subdweller Monowheel > --- UTILITY ---------- Huge Storage Unit Makeshift Light Armor Plating > --- WEAPON ----------- Medium Laser Barrage Gun > --- INVENTORY -------- Wheel Wheel Small Matter Pod Medium Matter Pod Medium Matter Pod Seismic Detector Propulsion Shielding Tractor Beam Mining Laser [Rating: 13] Favorites ----------- Power Ion Engine Engine Ion Engine Propulsion Light Treads Treads Light Treads Wheel Wheel Utility Huge Storage Unit Device Heat Sink Storage Huge Storage Unit Processor Signal Interpreter Protection Propulsion Shielding Weapon Medium Laser Energy Gun Medium Laser Ballistic Gun Assault Rifle Ballistic Cannon Light Cannon Launcher Grenade Launcher Special Weapon Mining Laser Build | -11 -10 -10 ------- Run | Yrd Mat Sub Slots Evolved . | . . . Power . | . . . Propulsion . | . . . Utility . | . . . Weapon . | . . . Parts Attached 28 | 6 13 9 Power 2 | . 1 1 Engine 2 | . 1 1 Core . | . . . Reactor . | . . . Propulsion 7 | 2 2 3 Treads 2 | 2 . . Leg . | . . . Wheel 5 | . 2 3 Hover . | . . . Flight . | . . . Utility 9 | 2 5 2 Device 2 | 1 1 . Storage 3 | 1 2 . Processor 1 | . . 1 Hackware . | . . . Protection 3 | . 2 1 Artifact . | . . . Weapon 10 | 2 5 3 Energy Gun 4 | 1 2 1 Energy Cannon . | . . . Ballistic Gun 2 | 1 . 1 Ballistic Cannon 1 | . 1 . Launcher 1 | . . 1 Special Weapon 2 | . 2 . Impact Weapon . | . . . Slashing Weapon . | . . . Piercing Weapon . | . . . Special Melee Weapon . | . . . Unidentified Prototypes . | . . . Parts Lost 11 | . 2 9 Power 1 | . . 1 Propulsion 5 | . . 5 Utility 1 | . 1 . Weapon 4 | . 1 3 Highest Loss Streak 4 | . 1 4 To Critical Strikes . | . . . Average Backups 9 | 3 8 11 Power . | 1 1 . Propulsion 2 | 1 2 3 Utility 4 | . 3 6 Weapon 1 | . 2 1 Tool/Special . | . . . Unused Backups 4 | . . 4 Power . | . . . Propulsion 1 | . . 1 Utility 3 | . . 3 Weapon . | . . . Tool/Special . | . . . Average Slot Usage (%) 95 | . 99 92 Engine 13 | . 13 13 Treads 11 | . 22 . Wheel 13 | . 5 21 Device 2 | . 5 . Storage 14 | . 14 14 Processor 2 | . . 4 Protection 8 | . 8 9 Energy Gun 12 | . 12 13 Ballistic Gun 1 | . 2 . Ballistic Cannon 6 | . 10 1 Launcher 5 | . . 11 Special Weapon 1 | . 2 . Peak Build Rating 13 | 6 8 13 Average Rating 7 | 4 7 7 On Entrance 4 | . 6 8 Avg Prop Armor Cover (%) 10 | . . 10 Naked Turns . | . . . Heaviest Build 94 | 10 90 94 Greatest Support 40 | 40 40 30 Greatest Overweight (x) 9 | 2 3 9 Average Overweight (x) 2 | . . 4 Largest Inventory Capacity 25 | 8 25 25 Average Capacity 17 | 7 12 25 Most Carried 14 | 5 14 14 Average Carried 9 | 3 8 11 Final Capacity 25 | 8 25 25 Final Carried 14 | 5 14 9 Class Distribution -------------------- 100% | Mutant Dominant Class ---------------- Mutant | -10/Materials Mutant | -10/Subcaves Resources | -11 -10 -10 ----------- Run | Yrd Mat Sub Matter Collected 901 | 290 484 127 Remotely . | . . . Salvage Created 587 | 177 208 202 Parts 41 | 13 10 18 Haulers Intercepted . | . . . Recyclers Shooed 1 | . 1 . Parts Field Recycled . | . . . Retrieved Matter . | . . . Parts Self-Destructed 8 | . . 8 Prevented . | . . . Parts Restored . | . . . Kills | -11 -10 -10 ------- Run | Yrd Mat Sub Combat Hostiles Destroyed 16 | . 6 10 Cannons 9 | . 6 3 AOE 7 | . . 7 Classes Destroyed 8 | 3 2 3 Worker 1 | 1 . . Tunneler 3 | 3 . . Recycler 1 | 1 . . Watcher 1 | . 1 . Swarmer 3 | . . 3 Grunt 6 | . 6 . Cobbler 1 | . . 1 Subdweller 7 | . . 7 Best Kill Streak 4 | 4 2 3 Combat Bots Only 3 | . 2 3 Max Kills in Single Turn 1 | 1 1 1 Gunslinging . | . . . Exploded 1 | . . 1 Melee . | . . . Uniques/NPCs Destroyed . | . . . Combat | -11 -10 -10 -------- Run | Yrd Mat Sub Hostile Shots Fired 94 | . 50 44 Missed 24 | . 15 9 Hits 70 | . 35 35 Projectile 70 | . 35 35 Actively Blocked 1 | . . 1 Damage Taken 1170 | 37 451 682 Core 250 | . 82 168 Absorbed by Shields . | . . . Redirected to Shielding 26 | . 4 22 Core Remaining (%) 100 | 100 . . Volleys Fired 82 | 10 45 27 Largest 2 | 2 2 2 Hottest 100 | 60 100 80 Shots Fired 122 | 20 65 37 Gun 58 | 20 25 13 Cannon 47 | . 39 8 Launcher 16 | . . 16 Special 1 | . 1 . Kinetic 60 | 10 39 11 Thermal 32 | . 22 10 Explosive 16 | . . 16 Electromagnetic 14 | 10 4 . Robot Hit Streak 11 | 9 11 9 Robot Miss Streak 3 | 1 3 3 Penetration Max . | . . . Secondary Targets . | . . . Shots Hit Robots 77 | 13 40 24 Core Hits 37 | 6 11 20 Critical Kills . | . . . Critical Parts Destroyed . | . . . Critical Strikes 5 | . 3 2 Burn 2 | . 1 1 Blast 3 | . 2 1 Melee Attacks . | . . . Impact . | . . . Slashing . | . . . Piercing . | . . . Sneak Attacks . | . . . Combat Hostiles . | . . . Follow-up Attacks . | . . . Damage Inflicted 2010 | 213 646 1151 Guns 503 | 192 170 141 Cannons 563 | . 465 98 Explosions 933 | 21 . 912 Melee . | . . . Ramming 11 | . 11 . Kinetic 698 | 85 465 148 Thermal 270 | 21 158 91 Explosive 912 | . . 912 Electromagnetic 119 | 107 12 . Impact . | . . . Slashing . | . . . Piercing . | . . . Highest Corruption . | . . . Average Corruption . | . . . Corruption Purged . | . . . Corruption Blocked . | . . . Overload Shots . | . . . Overflow Damage 19 | . 8 11 Projectiles 16 | . 8 8 Explosions 3 | . . 3 Melee . | . . . Knockbacks 7 | . 6 1 Impact . | . . . Kinetic 7 | . 6 1 Secondary . | . . . Self-Inflicted Damage 61 | 37 . 24 Shots 2 | 1 . 1 Rammed 2 | . 2 . Targets Rammed 2 | . 2 . Kicked . | . . . Crushed . | . . . Highest Temperature 394 | 7 394 23 Average Temperature 116 | 4 124 13 Received Heat Transfer 375 | . 261 114 Effects 5 | . 5 . Energy Bleed 2 | . 2 . Matter Decay 2 | . 2 . Damage (minor) 1 | . 1 . Siege Activations . | . . . Martial Activations . | . . . Shielding Activations . | . . . Robots Disrupted . | . . . Combat Hostiles . | . . . Robots Corrupted . | . . . Combat Hostiles . | . . . Parts Fried . | . . . Impact Corruptions . | . . . Robots Melted . | . . . Combat Hostiles . | . . . Parts Melted . | . . . Heat Transferred 867 | 50 495 322 Parts Sabotaged . | . . . Parts Stolen . | . . . Parts Stripped . | . . . Power Chain Reactions 1 | 1 . . Alert | -11 -10 -10 ------- Run | Yrd Mat Sub Maximum Alert Level . | . . . Low Security (%) 100 | 100 100 . Level 1 . | . . . Level 2 . | . . . Level 3 . | . . . Level 4 . | . . . Level 5 . | . . . High Security . | . . . Max Security . | . . . Peak Influence 54 | 15 54 . Initial . | . . . Average 6 | 2 7 . Influence Increases 314 | 25 189 100 Destroy 0b10 Robot/C 180 | . 120 60 Destroy 0b10 Robot/NC 30 | 25 5 . Destroy Leader 42 | . 32 10 Successful Hack 16 | . 16 . Disable Machine 15 | . 15 . Destroy Structure 1 | . 1 . Lose Combat Pursuer 30 | . . 30 Influence Decreases 314 | 25 189 100 Time Decay 264 | 25 179 60 Lost Part 50 | . 10 40 Squads Dispatched 2 | . 2 . Investigation . | . . . Extermination . | . . . Reinforcement 2 | . 2 . Assault . | . . . Garrison . | . . . Intercept . | . . . Searches Triggered . | . . . Construction Impeded . | . . . Haulers Reinforced . | . . . Active Scanning Responses . | . . . Cargo Convoy Interrupts . | . . . Stealth | -11 -10 -10 --------- Run | Yrd Mat Sub Distress Signals 3 | . 3 . Communications Jammed . | . . . Distress Signals . | . . . Times Spotted 30 | . 17 13 Peak Tracking Total 3 | . 3 3 Tactical Retreats 1 | . . 1 Traps | -11 -10 -10 ------- Run | Yrd Mat Sub Traps Triggered 3 | . . 3 Indirectly . | . . . Trap Hack Attempts . | . . . Triggered . | . . . Disarmed . | . . . Reprogrammed . | . . . Reused . | . . . Traps Extracted . | . . . Installed . | . . . Triggered . | . . . Machines | -11 -10 -10 ---------- Run | Yrd Mat Sub Machines Disabled 1 | . 1 . Max in Single Turn 1 | . 1 . Machines Repaired . | . . . Machines Dismantled . | . . . Machines Sabotaged . | . . . Overloaded Fab Kills . | . . . Hacking | -11 -10 -10 --------- Run | Yrd Mat Sub Machines Accessed 1 | . 1 . Terminals 1 | . 1 . Fabricators . | . . . Repair Stations . | . . . Recycling Units . | . . . Scanalyzers . | . . . Garrison Access . | . . . Total Hacks 1 | . 1 . Successful 1 | . 1 . Failed . | . . . Catastrophic . | . . . Database Lockouts . | . . . Manual 1 | . 1 . Terminals 1 | . 1 . Fabricators . | . . . Repair Stations . | . . . Recycling Units . | . . . Scanalyzers . | . . . Garrison Access . | . . . Terminal Hacks 1 | . 1 . Registered Components 1 | . 1 . Fabricator Hacks . | . . . Repair Station Hacks . | . . . Recycling Unit Hacks . | . . . Scanalyzer . | . . . Garrison Access Hacks . | . . . Unauthorized Hacks . | . . . Terminals . | . . . Fabricators . | . . . Repair Stations . | . . . Recycling Units . | . . . Scanalyzers . | . . . Garrison Access . | . . . Data Cores Recovered . | . . . Used . | . . . Hacking Detections 1 | . 1 . Full Trace Events . | . . . Feedback Events . | . . . Feedback Blocked . | . . . Robot Schematics Acquired . | . . . Robots Built . | . . . Authchips . | . . . Time . | . . . Total Robot Build Rating . | . . . Part Schematics Acquired . | . . . Parts Built . | . . . Authchips . | . . . Time . | . . . Total Part Build Rating . | . . . Part Studies Acquired . | . . . Parts Repaired . | . . . Time . | . . . Parts Recycled . | . . . Recycled Matter . | . . . Retrieved Matter . | . . . Retrieved Components . | . . . Parts Scanalyzed . | . . . Part Schematics Acquired . | . . . Parts Damaged . | . . . Bothacking | -11 -10 -10 ------------ Run | Yrd Mat Sub Used RIF Installer . | . . . Robots Hacked . | . . . Non-combat . | . . . Combat . | . . . Robot Hacks Applied . | . . . Relay Couplers Released . | . . . Fabnet Peak Effective % . | . . . Robots Rewired . | . . . Allies Hacked . | . . . Hacks Repelled . | . . . Allies | -11 -10 -10 -------- Run | Yrd Mat Sub Total Allies . | . . . Largest Group . | . . . Highest-Rated Group . | . . . Highest-Rated Ally . | . . . Total Orders . | . . . Ally Attacks . | . . . Total Damage . | . . . Kills . | . . . Allies Corrupted . | . . . Allies Melted . | . . . Intel | -11 -10 -10 ------- Run | Yrd Mat Sub Active Infowar (turns) 86 | 24 62 . Seismic 86 | 24 62 . Robot Analysis Total . | . . . Derelict Logs Recovered 2 | . . 2 Drone Launches . | . . . Drone Recoveries . | . . . Exploration | -11 -10 -10 ------------- Run | Yrd Mat Sub Turns Passed 2382 | 163 1125 1094 Spaces Moved 1264 | 82 544 638 Core 15 | 15 . . Treads 456 | 67 389 . Legs . | . . . Wheels 793 | . 155 638 Hover . | . . . Flight . | . . . Fastest Speed 50 | 50 135 119 Average Speed 154 | 146 152 155 Slowest Speed 215 | 160 160 215 Overloaded Moves . | . . . Propulsion Burnouts . | . . . Robots Hopped . | . . . Potential Cave-ins . | . . . Cave-ins Triggered . | . . . Exploration Rate (%) 29 | 4 46 39 Regions Visited 2 Branch Regions 1 Pre-discovered Areas 2 | . . 2 Known Exits Taken . | . . . Unknown Exits Taken 2 | 1 1 . Scrap Searched . | . . . Spaces Dug . | . . . Terrain Destroyed 75 | 6 . 69 Melee . | . . . Projectile . | . . . AOE 75 | 6 . 69 Terrain Rammed . | . . . Walls Destroyed . | . . . Machines Disabled . | . . . Actions | -11 -10 -10 --------- Run | Yrd Mat Sub Total 1564 | 102 768 694 Wait 159 | . 145 14 Move 1262 | 81 543 638 Hop . | . . . Pick Up 19 | 5 12 2 Fast Attach 13 | 6 7 . Attach 10 | . 2 8 Detach . | . . . Swap 8 | . 4 4 Drop 9 | . 8 1 Fire 82 | 10 45 27 Melee . | . . . Ram . | . . . Kick . | . . . Crush 2 | . 2 . Escape Stasis . | . . . Rewire . | . . . Trap . | . . . Miscellaneous . | . . . Route ------- -11/Scrapyard -10/Materials (discovered 3 exits: [*Mat] / [*Min] / [*Sub]) -10/Subcaves (discovered 1 exit: *Mat) History --------- Turn | Location | Event 3 | -11/Scrapyard | Discovered new exit (range 15) 164 | -11/Scrapyard | Entered Materials 305 | -10/Materials | Build established: Mutant 370 | -10/Materials | Discovered new exit (range 16) 433 | -10/Materials | Discovered new exit (range 10) 653 | -10/Materials | Discovered new exit (range 12) 764 | -10/Materials | Derelicts attacked the area 1289 | -10/Materials | Entered Subcaves 1430 | -10/Subcaves | Core integrity fell below 50% 1452 | -10/Subcaves | Visited Clippyterm 1558 | -10/Subcaves | A swath of the cavern ceiling suddenly collapsed 1833 | -10/Subcaves | Learned Materials interactive machine intel 1935 | -10/Subcaves | Discovered new exit (range 16) 1998 | -10/Subcaves | Identified exit to Materials 2146 | -10/Subcaves | Shifting Twisted Machinery released Barrage Gun 2151 | -10/Subcaves | Shifting Twisted Machinery released Mak. Light Armor Plating 2180 | -10/Subcaves | Learned location of Zion (-6) 2180 | -10/Subcaves | Met a Zionite searching for "candidates" 2317 | -10/Subcaves | Learned location of Mines (-10) 2382 | -10/Subcaves | Core integrity fell below 20% 2383 | -10/Subcaves | Destroyed by XM-RMV(R) with Subdweller Beam Cannon Last Messages --------------- Twisted Machinery. 02151_ Acquired Barrage Gun. 02177_ Acquired Mak. Light Armor Plating. 02179_ 8W-IED(z): "She is not going to be happy we haven't found any suitable candidates yet." 02180_ 8W-IED(z): "Hey you! It's really dangerous down here, I feel that you could die at any moment. For your health and safety might I suggest a trip to Zion?" World map updated: -6/Zion. 02317_ Acquired derelict log, extracted data. World map updated: -10/Mines. 02348_ Wheel destroyed. 02360_ Grenade Launcher destroyed. 02360_ Destroyed Grenade Launcher. 02363_ The unstable cave ceiling collapses. 02365_ Discarded Signal Interpreter. 02378_ KS-CIT(R) suffers critical hit (Burn). 02379_ Lgt. Treads destroyed. 02381_ Sub. Monowheel destroyed. Map ----- +----------------------------------------------------+ | ?????## ## #??????????????????????????????? | | ??????## #??????????????????????????????? | | ???????# ####??????????????????????????????? | | ?????### #?????????????????????????????????? | | ???### #?????????????????????????????????? | | #??# ##" ??????????????????????????????? | | ### ### #" ???????????????????????????? | | ### ??# # ???????????????????????????? | | #?###???#### ##? ???????????????????????????? | | #????????### #??? ??????????????????????????? | | ######????# #???# &??????????????????????????? | | ### ####?# ##??# #####?????????????????????? | | ### ####% "# ?????????????????????? | | ## ## %% ??????????????????????? | | ## ## % ???????????? #????????? | | ## #?# % #??????????? #?????????? | | #### ## ### ###???????? #??????????? | | ##?# ###### ##????? #???????????? | | #### #???# ##### #???????????? | | #???## ### ###?????????? | | #####????###?# R ??? | | ### ##??????### ## R# # #??????? | | #####??????## # ### ## ##??????? | | #?????????# # # ####????????##???????? | | ####???##### ##### #????????????????????? | | ##### ### # # @ ##????????????????????? | | #????????????????????? | | ## ## # # ### # ##????????????????????? | | ###############?######?????????????????????? | | #######??????????????????????????????????????????? | | ?????????????????????????????????????????????????? | | ?????????????????????????????????????????????????? | | ?????????????????????????????????????????????????? | | ?????????????????????????????????????????????????? | | ?????????????????????????????????????????????????? | | ?????????????????????????????????????????????????? | | ?????????????????????????????????????????????????? | | ?????????????????????????????????????????????????? | | ?????????????????????????????????????????????????? | | ?????????????????????????????????????????????????? | | ?????????????????????????????????????????????????? | | ?????????????????????????????????????????????????? | | ?????????????????????????????????????????????????? | | ?????????????????????????????????????????????????? | | | | | | | | | | | | | +----------------------------------------------------+ Best States ------------- Heat Dissipation 35 Energy Generation 10 Energy Capacity 250 Matter Stores 300 Matter Capacity 300 Sight Range 16 Terrain Scan Density 10 Armor Coverage 150 Propulsion Shielding 33 Evasion (%) 40 Recoil Reduction 2 Item Schematics ----------------- None Robot Schematics ------------------ None Fabricated ------------ Nothing Repaired ---------- Nothing Studied --------- None Alien Tech Used ----------------- None Achievements -------------- None Challenges ------------ None Game ------ Seed MagneticPhaseCrosscalibrator Manual? 0 Play Time 00:10:41 Cumulative 97.0 hours Start 2026.02.21 @ 17:43:23 End 2026.02.21 @ 17:56:33 Sessions 1 Manual Loads 0 Difficulty Rogue Special Mode None Game No. 153 Rogue 153 Adventurer 0 Explorer 0 Win Type - Total 0 Types 0/0/0/0/0/0/0/0/0/0 Lore% 19 Gallery% 38 Achievement% 28 Wizard Run 0 Options --------- Layout 1 ASCII 0 Keyboard 0 Movement Mouse Keybinds 0 Fullscreen 2 Font 24/Smallcaps Map View 50x35 Zoom Use 30% Tactical HUD 1 Map Filters NONE Filters NONE Steam 1 RUN: 9fa45c8d-07d9-4ec1-899e-2267414cc823